bitfinex/quotes_ETHUSD_20241116
["timestamp","ask_amount","ask_price","bid_price","bid_amount"]
[1731782837289,0.2156,3177.9,3177.6,1.28220913]
[1731782838177,0.2156,3177.9,3177.4,3.14721]
[1731782838581,0.2156,3177.9,3177.4,3.14713]
[1731782839528,0.2156,3177.9,3177.4,6.29429]
[1731782839683,0.2156,3177.9,3177.4,3.14713]
[1731782840377,0.03559403,3177.8,3177.4,3.14713]
[1731782840580,0.2156,3177.9,3177.4,3.14713]
[1731782840804,0.03559613,3177.8,3177.4,3.14713]
[1731782841723,0.03559613,3177.8,3177.4,6.29428]
[1731782842039,0.03559613,3177.8,3177.4,3.14713]
[1731782842344,0.03559613,3177.8,3177.4,6.29429]
[1731782842494,0.03559613,3177.8,3177.5,3.14707]
[1731782856413,0.03559613,3177.8,3177.3,5.52223011]
[1731782856611,0.03559613,3177.8,3177.3,5.52216011]
[1731782856863,0.03559613,3177.8,3177.4,3.1472]
[1731782857243,0.03559613,3177.8,3177.4,3.45841098]
[1731782857557,0.03559613,3177.8,3177.4,3.1472]
[1731782858059,0.03559613,3177.8,3177.3,5.52216011]
[1731782858368,0.03559613,3177.8,3177.3,8.66941011]
[1731782858519,0.03559613,3177.8,3177.3,5.52216011]
[1731782858867,0.03559613,3177.8,3177.4,3.14721]
[1731782859727,0.03559613,3177.8,3177.3,5.52216011]
[1731782859932,0.03559613,3177.8,3177.4,3.14722]
[1731782866151,1.65759487,3177.8,3177.3,0.31202978]
[1731782866337,3.36302,3177.2,3177.1,0.31202978]
[1731782866537,0.2156,3176.9,3176.6,0.31202978]
[1731782866734,0.2156,3176.9,3176.5,0.31202978]
[1731782866735,0.03415637,3176.8,3176.5,0.31202978]
[1731782866977,0.03415637,3176.8,3176.3,4.24851978]
[1731782867280,0.03415637,3176.8,3176.2,3.1484]
[1731782867281,0.37391001,3176.8,3176.2,3.1484]
[1731782867488,0.37391001,3176.8,3176.4,0.37417556]
[1731782867645,0.37391001,3176.8,3176.3,0.37417556]
[1731782867980,0.37391001,3176.8,3176.4,0.37417556]
[1731782868343,0.373729,3176.7,3176.4,0.37417556]
[1731782868534,0.03411078,3176.6,3176.4,0.37417556]
[1731782868937,0.03411078,3176.6,3176.2,3.14841]
[1731782868938,0.03411078,3176.6,3176.3,0.37417556]
[1731782869348,0.03411078,3176.6,3176.2,3.52258556]
[1731782869555,0.03411078,3176.6,3176.2,3.14841]
[1731782869739,0.03411078,3176.6,3176.3,0.37364585]
[1731782869940,0.03411078,3176.6,3176.2,0.37364518]
[1731782869941,0.38967776,3176.6,3176.2,0.37364518]
[1731782870140,3.53777776,3176.6,3176.1,0.37364518]
[1731782870375,0.2156,3176.5,3176.1,0.37364518]
[1731782870584,0.03406518,3176.4,3176.1,0.37364518]
[1731782870785,0.03406518,3176.4,3175.8,3.14878]
[1731782870786,0.03406518,3176.4,3175.9,0.37364518]
[1731782870937,3.18230518,3176.4,3175.9,0.37364518]
[1731782871577,3.18230518,3176.4,3175.8,3.14878]
[1731782872286,0.2156,3176.2,3175.7,0.3143]
[1731782872642,0.03399677,3176.1,3175.6,3.93719]
[1731782873084,0.03399677,3176.1,3175.6,3.14899]
[1731782873784,0.03399677,3176.1,3175.4,3.1492]
[1731782874089,3.14855,3176.1,3175.4,4.43140913]
[1731782874450,0.03397397,3176.0,3175.4,4.43140913]
[1731782874791,0.2156,3175.9,3175.4,3.1492]
[1731782874948,0.03392835,3175.8,3175.4,4.43140913]
[1731782875143,0.03392835,3175.8,3175.3,0.875]
[1731782875144,3.14899,3175.7,3175.3,0.875]
[1731782875360,3.18289273,3175.6,3175.3,0.875]
[1731782875793,0.03388273,3175.6,3175.3,0.875]
[1731782875946,0.03388273,3175.6,3175.5,4.43131913]
[1731782876149,3.14824,3176.4,3175.5,2.13339277]
[1731782876150,0.2156,3176.4,3175.5,2.13339277]
[1731782876448,0.03269491,3176.3,3176.1,1.28220913]
[1731782876679,0.03269491,3176.3,3176.0,3.9368]
[1731782877192,0.03269491,3176.3,3176.0,0.7882]
[1731782877376,3.5206464,3176.3,3175.5,3.1491]
[1731782877545,3.18100491,3176.3,3175.5,3.1491]
[1731782877960,0.2156,3176.0,3175.3,4.7789]
[1731782878273,3.14901,3175.6,3175.3,0.875]
[1731782878592,0.24811245,3175.5,3175.3,0.875]
[1731782879752,3.39727245,3175.5,3175.3,0.875]
[1731782880397,0.24811245,3175.5,3175.3,0.875]
[1731782881552,0.03251245,3175.5,3175.3,0.875]
[1731782881752,3.36432,3175.9,3175.3,0.875]
[1731782881996,0.636432,3175.8,3175.3,0.875]
[1731782882148,3.81784289,3175.8,3175.3,0.875]
[1731782882603,0.66901289,3175.8,3175.3,4.0243]
[1731782882915,3.81783289,3175.8,3175.3,0.875]
[1731782883749,0.66901289,3175.8,3175.3,0.875]
[1731782884188,0.03258089,3175.8,3175.3,3.58888074]
[1731782884395,0.2156,3176.2,3175.7,3.90351]
[1731782884691,0.2156,3176.6,3176.1,3.1485]
[1731782884891,0.336353,3176.5,3176.1,3.1485]
[1731782885107,0.36887649,3176.5,3176.1,3.1485]
[1731782885776,0.03252349,3176.5,3176.2,3.1484]
[1731782885975,3.36313,3177.1,3176.4,0.7546]
[1731782886199,3.14774,3176.9,3176.4,0.7546]
[1731782886408,0.314774,3176.8,3176.4,0.7546]
[1731782886698,0.314774,3176.8,3176.4,3.90281]
[1731782886998,0.2156,3177.1,3176.6,3.14801]
[1731782887398,0.2156,3177.1,3176.7,3.1479]
[1731782887561,3.36288,3177.4,3176.8,3.14775]
[1731782887913,0.2156,3177.4,3177.0,3.14759]
[1731782888057,3.36265,3177.6,3177.0,3.14759]
[1731782888403,0.336265,3177.5,3177.0,3.14759]
[1731782888985,0.2156,3177.6,3177.1,3.14752]
[1731782889187,0.2156,3177.9,3177.3,3.14731]
[1731782889694,0.2156,3177.9,3177.4,3.14722]
[1731782890211,3.1466,3178.1,3177.4,3.14722]
[1731782890374,0.33622,3178.0,3177.5,3.14712]
[1731782892907,0.33622,3178.0,3177.3,3.14731]
[1731782893121,0.33622,3178.0,3177.4,3.14717]
[1731782893621,0.33622,3178.0,3177.5,3.14711]
[1731782893902,3.2156,3178.2,3177.1,2.71388074]
[1731782894110,6.36208,3178.2,3177.3,3.14732]
[1731782894263,3.14654,3178.1,3177.4,3.14716]
[1731782894464,0.636214,3178.0,3177.4,3.14716]
[1731782894690,0.636214,3178.0,3177.5,3.14709]
[1731782894894,0.2156,3178.2,3177.7,3.14684]
[1731782895109,0.2156,3178.2,3177.6,0.7546]
[1731782895110,0.2156,3178.2,3177.8,3.14683]
[1731782895272,0.2156,3178.2,3177.6,0.7546]
[1731782895618,3.36204,3178.2,3177.6,0.7546]
[1731782895762,0.03142683,3178.1,3177.6,3.90162]
[1731782896162,3.1458,3178.9,3177.8,3.14674]
[1731782896163,3.14614,3178.5,3177.8,3.14674]
[1731782896409,0.39296976,3178.4,3177.8,3.14674]
[1731782896704,0.39296976,3178.4,3177.7,3.14692]
[1731782896904,0.03149515,3178.4,3177.9,3.14663]
[1731782897265,0.03149515,3178.4,3177.7,3.14692]
[1731782897488,0.03149515,3178.4,3178.0,3.14662]
[1731782897690,0.03149515,3178.4,3177.8,3.1468]
[1731782897904,0.03149515,3178.4,3177.9,3.14671]
[1731782898343,0.03149515,3178.4,3177.7,3.1469]
[1731782898512,0.03149515,3178.4,3178.0,3.14661]
[1731782899192,0.03149515,3178.4,3177.8,3.53698]
[1731782899508,0.03149515,3178.4,3177.9,3.14672]
[1731782900007,3.1465,3178.2,3177.6,0.7546]
[1731782900320,3.1465,3178.2,3177.4,3.14721]
[1731782900321,0.2156,3178.1,3177.4,3.14721]
[1731782900611,3.14663,3178.0,3177.4,3.14721]
[1731782900808,3.17811234,3178.0,3177.4,3.14721]
[1731782901165,3.17811234,3178.0,3177.2,6.1474]
[1731782901166,3.14689,3177.8,3177.2,3.1474]
[1731782901398,0.031414,3177.7,3177.2,3.1474]
[1731782901983,3.178344,3177.7,3177.0,3.90998]
[1731782902180,3.178344,3177.7,3177.1,3.1475]
[1731782902964,3.178344,3177.7,3177.0,0.7624]
[1731782903166,0.2156,3177.5,3177.0,0.7624]
[1731782903536,0.03128427,3177.4,3177.0,0.7624]
[1731782903671,0.03128427,3177.4,3177.0,3.14759]
[1731782903866,0.03128427,3177.4,3176.8,3.14778]
[1731782904072,3.17856427,3177.4,3176.8,3.14778]
[1731782904312,3.17856427,3177.4,3176.7,0.7624]
[1731782904523,3.14733,3177.3,3176.7,0.7624]
[1731782904832,3.14733,3177.3,3176.7,3.91032]
[1731782904982,0.03116676,3177.2,3176.7,3.91032]
[1731782906270,0.03116676,3177.2,3176.5,3.1481]
[1731782906271,3.17859676,3177.2,3176.5,3.91045]
[1731782906622,0.03116676,3177.2,3176.5,0.7624]
[1731782906822,3.17860676,3177.2,3176.6,3.14795]
[1731782907822,0.03116676,3177.2,3176.6,3.14795]
[1731782908166,3.14735,3177.3,3176.7,3.14788]
[1731782908463,0.03116676,3177.2,3176.8,3.14781]
[1731782908772,3.14735,3177.3,3176.8,3.14781]
[1731782908921,0.0311101,3177.1,3176.8,3.14781]
[1731782909122,0.03113289,3177.2,3176.8,3.14781]
[1731782909323,0.03109472,3177.0,3176.8,3.14781]
[1731782909621,0.2156,3177.5,3176.8,3.34344974]
[1731782909842,0.2156,3177.8,3177.3,3.14726]
[1731782910058,0.2156,3177.8,3177.4,3.14719]
[1731782910267,3.14621,3178.5,3177.7,3.14683]
[1731782910425,0.314614,3178.4,3177.9,3.14673]
[1731782913064,0.314614,3178.4,3177.7,3.14692]
[1731782913265,0.314614,3178.4,3177.8,3.14682]
[1731782913466,0.314614,3178.4,3177.9,3.1467]
[1731782913767,0.314614,3178.4,3178.0,3.14657]
[1731782913976,3.14605,3178.6,3178.0,3.14657]
[1731782914172,3.14605,3178.6,3177.9,3.1467]
[1731782914853,3.14614,3178.5,3177.9,3.1467]
[1731782915453,3.17769619,3178.4,3177.7,3.14691]
[1731782915838,3.14637,3178.3,3177.7,3.14691]
[1731782916044,3.14637,3178.3,3177.5,3.921]
[1731782916045,3.17793104,3178.2,3177.6,3.14701]
[1731782916340,3.1468,3177.9,3177.3,3.14728]
[1731782916524,3.14692,3177.8,3177.1,3.14752]
[1731782916721,3.80768493,3177.8,3177.2,0.3733102]
[1731782916964,3.14705,3177.6,3177.2,0.3733102]
[1731782917151,3.80766493,3177.8,3177.2,0.3733102]
[1731782917352,0.03133158,3177.5,3177.2,3.5207202]
[1731782917676,0.0313088,3177.4,3177.3,3.5205702]
[1731782917877,0.629365,3177.8,3177.3,3.5205702]
[1731782918184,0.03137715,3177.7,3177.6,3.14702]
[1731782918330,0.03137715,3177.7,3177.6,3.52039308]
[1731782918643,6.50819,3178.4,3177.6,3.52039308]
[1731782918842,6.50819,3178.4,3177.7,3.52023161]
[1731782918843,0.03151382,3178.3,3177.7,3.52023161]
[1731782919067,0.65397038,3178.2,3177.7,3.14691]
[1731782919313,0.03146827,3178.1,3177.8,3.14682]
[1731782919467,0.03146827,3178.1,3177.9,3.14671]
[1731782919649,0.2156,3178.4,3177.9,3.14671]
[1731782919855,0.36769082,3178.3,3177.9,3.14671]
[1731782921132,0.03151382,3178.3,3177.9,3.14671]
[1731782921354,0.03151382,3178.3,3177.7,6.29377]
[1731782921583,0.03151382,3178.3,3177.8,3.14677]
[1731782921878,0.03151382,3178.3,3177.9,3.1467]
[1731782922077,0.03151382,3178.3,3178.0,3.14661]
[1731782922278,0.03151382,3178.3,3178.2,3.14643]
[1731782922479,0.2156,3178.7,3178.2,3.14643]
[1731782922633,0.03156836,3178.6,3178.2,3.14643]
[1731782924046,0.2156,3178.7,3178.2,6.29279]
[1731782924249,0.03161385,3178.6,3178.3,3.14633]
[1731782924446,0.530167,3178.9,3178.4,3.14623]
[1731782924651,0.03166044,3178.8,3178.4,3.14623]
[1731782924854,0.03166044,3178.8,3178.2,3.14636]
[1731782925204,3.17756044,3178.8,3178.2,3.14636]
[1731782925502,3.86290018,3178.8,3178.2,3.14636]
[1731782925654,3.86290018,3178.8,3178.1,0.8031]
[1731782925655,3.14598,3178.7,3178.1,0.8031]
[1731782925873,0.03161913,3178.6,3178.1,0.8031]
[1731782926545,0.03161913,3178.6,3178.0,3.14659]
[1731782926546,3.17765913,3178.6,3178.0,3.14659]
[1731782926804,3.1464,3178.3,3177.8,0.8031]
[1731782927103,0.03156931,3178.2,3177.7,3.14689]
[1731782927239,3.17801931,3178.2,3177.7,3.14689]
[1731782928440,3.14645,3178.2,3177.6,3.14701]
[1731782928782,3.17803942,3178.1,3177.5,0.8031]
[1731782928981,3.17803942,3178.1,3177.5,3.95021]
[1731782929384,0.03148942,3178.1,3177.5,3.95021]
[1731782929590,3.17802942,3178.1,3177.5,3.95021]
[1731782929765,0.03148942,3178.1,3177.5,3.95021]
[1731782930095,3.17805942,3178.1,3177.5,3.14711]
[1731782930250,0.2156,3178.0,3177.5,3.14711]
[1731782930451,0.03144386,3177.9,3177.5,3.14711]
[1731782931496,0.37080525,3177.9,3177.3,1.1174]
[1731782931720,3.14701,3177.7,3177.1,3.46181]
[1731782931888,3.14703,3177.6,3177.1,0.3143]
[1731782932051,0.03130513,3177.5,3177.1,0.3143]
[1731782932269,3.14713,3177.5,3177.1,0.3143]
[1731782932460,0.03126436,3177.4,3177.1,0.3143]
[1731782932763,3.14734,3177.3,3176.7,3.46218]
[1731782932963,3.14734,3177.3,3176.7,0.3143]
[1731782933158,0.03121878,3177.2,3176.7,0.3143]
[1731782934112,0.03121878,3177.2,3176.7,3.14789]
[1731782934406,0.03121878,3177.2,3176.6,3.95111]
[1731782934610,3.14733,3177.3,3176.6,4.92390365]
[1731782934971,0.03116165,3177.2,3176.6,4.92390365]
[1731782936874,3.17862165,3177.2,3176.6,4.92390365]
[1731782937072,3.17862165,3177.2,3176.6,1.77589365]
[1731782937898,3.17862165,3177.2,3176.6,4.92390365]
[1731782938094,0.03116165,3177.2,3176.6,1.77589365]
[1731782938296,3.14753,3177.1,3176.6,1.77589365]
[1731782938468,0.03111607,3177.0,3176.6,1.77589365]
[1731782938873,0.03111607,3177.0,3176.6,0.8031]
[1731782939070,0.03111607,3177.0,3176.5,3.14806]
[1731782939670,0.03111607,3177.0,3176.7,3.14791]
[1731782939871,3.14733,3177.3,3176.7,3.14791]
[1731782940122,0.03106217,3177.2,3176.7,3.14791]
[1731782940279,0.03106217,3177.2,3177.1,3.14752]
[1731782940617,3.36254,3177.7,3177.0,0.7677]
[1731782940927,3.1472,3177.5,3177.0,0.7677]
[1731782941116,8.74,3178.3,3176.6,0.7677]
[1731782941117,3.36306,3177.2,3176.6,0.7677]
[1731782941281,3.14752,3177.1,3176.4,3.62337187]
[1731782941469,3.17868612,3177.0,3176.4,3.62337187]
[1731782941867,3.14821,3176.5,3175.8,3.14879]
[1731782942098,3.14821,3176.5,3175.7,3.14884]
[1731782942099,0.03090521,3176.4,3175.7,3.14884]
[1731782942280,3.14835,3176.3,3175.7,3.14884]
[1731782942483,0.03082362,3176.2,3175.7,3.14884]
[1731782942924,3.17923362,3176.2,3175.6,3.149]
[1731782943291,0.03082362,3176.2,3175.6,3.149]
[1731782943510,0.03082362,3176.2,3175.7,3.1489]
[1731782943712,0.03082362,3176.2,3175.8,3.14871]
[1731782944225,0.03082362,3176.2,3175.5,4.53625361]
[1731782944226,3.36392,3176.3,3175.7,3.1489]
[1731782944397,0.03072669,3176.1,3175.7,3.1489]
[1731782944581,0.0307495,3176.2,3175.7,3.1489]
[1731782944776,0.03070389,3176.0,3175.7,3.1489]
[1731782945016,0.03072669,3176.1,3175.7,3.1489]
[1731782945225,0.2156,3176.3,3175.7,3.1489]
[1731782945226,0.03068108,3175.9,3175.7,3.1489]
[1731782945594,0.2156,3176.3,3175.7,3.1489]
[1731782945796,0.03065827,3175.8,3175.7,3.1489]
[1731782946018,0.2156,3176.3,3175.7,3.1489]
[1731782946220,0.2156,3176.3,3175.8,3.14874]
[1731782946543,0.0307495,3176.2,3175.7,3.14883]
[1731782946686,0.0307495,3176.2,3175.9,6.29727]
[1731782946888,0.2156,3176.3,3175.9,3.14863]
[1731782947124,0.0307495,3176.2,3175.9,3.14863]
[1731782947310,3.3637,3176.6,3176.0,3.1486]
[1731782947506,0.0308179,3176.5,3176.0,3.1486]
[1731782947911,0.0308179,3176.5,3176.1,3.1485]
[1731782949143,0.0308179,3176.5,3176.4,3.14821]
[1731782949507,0.2156,3176.9,3176.4,3.14821]
[1731782949728,0.03081326,3176.8,3176.7,3.14791]
[1731782949932,11.46330989,3178.1,3176.5,3.9793]
[1731782949933,0.2156,3177.4,3176.8,3.14778]
[1731782950128,0.2156,3177.4,3177.0,3.14758]
[1731782950485,0.2156,3177.4,3176.9,3.14771]
[1731782950763,0.2156,3177.4,3177.0,3.14759]
[1731782951409,0.2156,3177.7,3176.7,3.14792]
[1731782951611,0.2156,3177.7,3177.2,3.14736]
[1731782952006,0.2156,3177.7,3177.4,3.1472]
[1731782952212,0.2156,3178.1,3177.6,3.14695]
[1731782952456,0.2156,3178.1,3177.7,3.14691]
[1731782952763,0.2156,3178.1,3177.8,3.14674]
[1731782952915,0.530233,3178.3,3177.8,3.14674]
[1731782953439,0.3676553,3178.2,3177.8,3.14674]
[1731782953645,0.3676553,3178.2,3177.6,3.14695]
[1731782954756,3.5141053,3178.2,3177.6,3.14695]
[1731782954966,3.14653,3178.1,3176.7,0.31118107]
[1731782955135,0.2156,3177.6,3177.1,3.14752]
[1731782955745,0.2156,3177.6,3177.4,3.14719]
[1731782956191,0.2156,3178.0,3177.6,3.14697]
[1731782956465,0.2156,3178.0,3177.3,0.8312]
[1731782956611,3.14674,3177.9,3177.1,3.14749]
[1731782956812,3.14674,3177.9,3177.3,3.14732]
[1731782957025,0.551814,3178.0,3177.1,3.14749]
[1731782957241,3.698454,3178.0,3177.1,3.14749]
[1731782957460,3.14679,3177.9,3177.3,3.1473]
[1731782957760,0.551814,3178.0,3177.4,3.1472]
[1731782957761,3.698444,3178.0,3177.4,3.1472]
[1731782958752,3.698444,3178.0,3177.3,3.1473]
[1731782958931,3.14673,3177.9,3177.3,3.1473]
[1731782959131,0.551814,3178.0,3177.3,3.1473]
[1731782959132,0.551814,3178.0,3177.4,3.14721]
[1731782959425,0.551814,3178.0,3177.5,3.14711]
[1731782959621,0.2156,3178.0,3177.4,0.06293799]
[1731782959859,3.36184,3178.4,3177.8,3.14675]
[1731782960160,3.36184,3178.4,3177.6,6.29398]
[1731782960161,3.797141,3178.3,3177.6,6.29398]
[1731782960331,3.14647,3178.2,3177.6,3.14696]
[1731782960539,0.03137411,3178.1,3177.6,3.147]
[1731782960726,3.797141,3178.3,3177.6,3.147]
[1731782960924,0.43267522,3178.2,3177.6,3.14702]
[1731782961124,0.03140112,3178.2,3177.9,3.14672]
[1731782961322,0.2156,3178.4,3177.5,0.7827]
[1731782961323,3.14639,3178.3,3177.7,3.14686]
[1731782961553,0.03142439,3178.2,3177.7,3.14686]
[1731782961942,0.03142439,3178.2,3177.8,3.14682]
[1731782962484,0.2156,3178.4,3177.8,3.14682]
[1731782962689,0.03142488,3178.1,3177.8,3.14682]
[1731782962859,0.03142488,3178.1,3177.6,3.14699]
[1731782962860,3.14644,3178.2,3177.6,3.14699]
[1731782963038,0.551776,3178.4,3177.6,3.20992594]
[1731782963039,0.03140316,3178.0,3177.6,3.20992594]
[1731782963242,0.03142594,3178.1,3177.8,3.14681]
[1731782963560,0.551776,3178.4,3177.8,3.14681]
[1731782963757,0.03140953,3178.0,3177.8,3.14681]
[1731782963953,0.3697946,3178.3,3177.8,3.14681]
[1731782964159,0.03138675,3177.9,3177.8,3.14681]
[1731782964380,3.5161346,3178.3,3177.8,3.14681]
[1731782964653,0.03138675,3177.9,3177.8,3.14681]
[1731782964890,0.3697946,3178.3,3177.8,3.14681]
[1731782965068,0.03138675,3177.9,3177.8,5.86069074]
[1731782965253,6.61733731,3179.7,3178.4,3.14615]
[1731782965254,0.2156,3178.8,3178.4,3.14615]
[1731782965743,0.0305278,3178.7,3178.4,3.14615]
[1731782965942,0.2156,3178.8,3178.4,3.14615]
[1731782966140,0.03053098,3178.7,3178.6,3.14603]
[1731782966449,0.2156,3178.8,3178.6,3.14603]
[1731782966681,0.03056482,3178.7,3178.6,3.14603]
[1731782966992,0.2156,3178.8,3178.6,3.14603]
[1731782967198,0.03056588,3178.7,3178.6,3.14603]
[1731782967395,0.2156,3178.8,3178.6,3.14603]
[1731782967548,0.03057646,3178.7,3178.6,3.14603]
[1731782967882,0.2156,3178.8,3178.6,3.14603]
[1731782968086,0.03057751,3178.7,3178.4,3.14615]
[1731782968449,0.2156,3178.8,3178.4,3.14615]
[1731782968649,0.0305558,3178.6,3178.4,3.14615]
[1731782968973,0.03053303,3178.5,3178.4,3.14615]
[1731782969345,0.2156,3178.8,3178.4,3.14615]
[1731782969682,0.03057857,3178.7,3178.4,3.14615]
[1731782969900,0.03057857,3178.7,3178.5,3.14613]
[1731782970094,0.2156,3178.8,3178.5,3.14613]
[1731782970249,0.0305558,3178.6,3178.5,3.14613]
[1731782970444,0.2156,3178.8,3178.4,3.14615]
[1731782970709,0.03055792,3178.6,3178.2,3.14638]
[1731782971003,0.03053515,3178.5,3178.2,3.14638]
[1731782971490,0.2156,3178.8,3178.2,3.14638]
[1731782971654,0.336141,3178.7,3178.2,3.14638]
[1731782972076,0.03055792,3178.6,3178.2,3.14638]
[1731782972290,3.36145,3178.8,3178.2,3.14638]
[1731782972665,3.17652069,3178.7,3178.2,3.14638]
[1731782972869,0.03058069,3178.7,3178.2,3.14638]
[1731782973281,3.01997685,3178.8,3178.2,3.14638]
[1731782973454,0.02952904,3178.6,3178.2,3.14638]
[1731782973653,3.47750844,3178.7,3178.1,3.14652]
[1731782973967,3.47750844,3178.7,3178.0,3.14662]
[1731782973968,0.02952799,3178.6,3178.2,3.14642]
[1731782974810,0.02952799,3178.6,3178.3,3.14625]
[1731782975014,3.14568,3179.0,3178.3,3.14625]
[1731782975316,0.02950099,3178.5,3178.4,3.14623]
[1731782975606,0.02950099,3178.5,3178.2,3.14636]
[1731782975788,3.14575,3178.9,3178.3,3.1463]
[1731782976109,0.02947821,3178.4,3178.3,3.1463]
[1731782976313,3.14575,3178.9,3178.3,3.1463]
[1731782976466,0.02947821,3178.4,3178.3,3.1463]
[1731782977104,3.5232365,3178.9,3178.3,3.1463]
[1731782977291,0.02933372,3178.4,3178.3,3.1463]
[1731782977490,3.5232365,3178.9,3178.3,3.1463]
[1731782977995,0.02942479,3178.8,3178.3,3.1463]
[1731782980003,0.02942479,3178.8,3178.5,3.14605]
[1731782980218,0.02942479,3178.8,3178.3,3.14627]
[1731782980377,0.02942479,3178.8,3178.3,3.14624]
[1731782980706,3.14566,3179.0,3178.4,3.14621]
[1731782980904,0.02911801,3178.7,3178.4,3.14621]
[1731782981127,3.774781,3179.0,3178.4,3.14621]
[1731782981290,0.02909524,3178.6,3178.4,3.14621]
[1731782981474,3.774781,3179.0,3178.4,3.14621]
[1731782981675,0.02907247,3178.5,3178.4,3.14621]
[1731782982587,0.629121,3179.0,3178.4,3.14621]
[1731782982784,3.14555,3179.1,3178.4,3.14621]
[1731782982991,0.02916354,3178.9,3178.4,3.14621]
[1731782983188,0.02918631,3179.0,3178.4,3.14621]
[1731782983384,0.02914078,3178.8,3178.4,3.14621]
[1731782983619,0.02916566,3178.9,3178.4,3.92271]
[1731782983783,0.02912224,3178.7,3178.4,3.92271]
[1731782983998,0.02914501,3178.8,3178.4,3.92271]
[1731782984181,0.02914501,3178.8,3178.5,3.14604]
[1731782984381,3.14555,3179.1,3178.5,3.14604]
[1731782984582,3.0,3179.4,3178.6,3.14603]
[1731782984583,0.02900296,3178.7,3178.6,3.14603]
[1731782984895,3.14517,3179.5,3178.8,3.14576]
[1731782985219,0.02928158,3179.4,3178.8,3.14576]
[1731782985813,6.31988158,3179.4,3178.8,3.14576]
[1731782986021,3.83233816,3179.3,3178.6,6.29193]
[1731782986238,3.86159698,3179.3,3178.6,3.14595]
[1731782986838,0.02925882,3179.3,3178.8,3.14575]
[1731782986983,0.02925882,3179.3,3178.4,0.7765]
[1731782986984,0.02925882,3179.3,3179.0,6.29112]
[1731782987178,3.0,3179.6,3179.0,3.14556]
[1731782987395,0.02923606,3179.2,3179.0,3.14556]
[1731782987725,3.928989,3179.6,3179.0,3.14556]
[1731782987726,0.0292133,3179.1,3179.0,3.14556]
[1731782988029,3.14505,3179.6,3179.0,3.14556]
[1731782988229,0.0292133,3179.1,3179.0,3.14556]
[1731782988447,3.14505,3179.6,3179.0,3.14556]
[1731782988731,0.314505,3179.5,3179.0,3.14556]
[1731782989082,0.02928158,3179.4,3179.0,3.14556]
[1731782990112,0.02928158,3179.4,3178.9,0.7765]
[1731782990626,0.02928158,3179.4,3178.9,3.92222]
[1731782990923,3.14537,3179.3,3178.7,3.14593]
[1731782991288,0.0292826,3179.2,3178.7,3.14593]
[1731782991701,3.14499,3179.7,3178.8,0.7765]
[1731782991902,0.02937363,3179.6,3179.0,3.14561]
[1731782992686,3.14505,3179.6,3179.0,3.14561]
[1731782993026,0.02935087,3179.5,3179.0,3.14561]
[1731782993927,3.14507,3179.6,3179.0,3.14561]
[1731782994110,0.0294143,3179.5,3179.0,3.14561]
[1731782994718,3.773993,3179.7,3179.1,3.14552]
[1731782994916,0.02943812,3179.6,3179.1,3.14552]
[1731782997546,0.02943812,3179.6,3178.9,3.14567]
[1731782997829,3.14538,3179.3,3178.7,3.1459]
[1731782998404,0.02934814,3179.2,3178.6,3.97702]
[1731782998603,3.17479814,3179.2,3178.6,3.97702]
[1731782999227,3.17479814,3179.2,3178.7,3.14592]
[1731782999547,3.17479814,3179.2,3178.6,0.831]
[1731782999694,3.14557,3179.1,3178.6,3.97703]
[1731782999921,0.02930262,3179.0,3178.6,3.97703]
[1731783002257,0.02930262,3179.0,3178.7,3.14593]
[1731783002461,0.02930262,3179.0,3178.6,0.831]
[1731783002635,3.14547,3179.2,3178.6,0.831]
[1731783002836,0.02928409,3178.9,3178.6,3.97696]
[1731783003036,1.2819678,3179.6,3178.6,3.97696]
[1731783003270,0.02926132,3178.8,3178.6,3.97696]
[1731783003588,0.02923856,3178.7,3178.6,3.97696]
[1731783003920,3.14517,3179.5,3178.6,4.78212329]
[1731783004117,3.14474,3180.0,3179.3,3.14534]
[1731783004348,3.1445,3180.2,3179.5,3.14508]
[1731783004556,3.27659407,3180.6,3179.8,3.14483]
[1731783004735,3.14437,3180.3,3179.6,3.97603]
[1731783004939,3.14435,3180.4,3179.6,3.97603]
[1731783005759,3.91464219,3180.4,3179.6,3.97603]
[1731783006086,3.91464219,3180.4,3179.6,3.97597]
[1731783006262,3.91464219,3180.4,3179.7,3.14486]
[1731783006472,4.55859187,3180.6,3179.8,3.14478]
[1731783006626,0.13253407,3180.6,3180.0,3.14459]
[1731783006969,0.13253407,3180.6,3180.1,3.14454]
[1731783008641,0.13253407,3180.6,3180.5,3.14415]
[1731783009545,0.13253407,3180.6,3180.5,3.91055]
[1731783009777,0.13253407,3180.6,3180.5,4.56244139]
[1731783013657,0.13253407,3180.6,3180.2,3.14444]
[1731783013860,0.13253407,3180.6,3180.2,0.7664]
[1731783014066,0.13253407,3180.6,3180.1,3.14448]
[1731783014273,3.14424,3180.5,3179.9,0.7664]
[1731783014460,3.14424,3180.5,3179.8,3.14477]
[1731783014657,6.32437857,3180.8,3180.1,3.14455]
[1731783014879,6.32437857,3180.8,3179.9,0.06288557]
[1731783015186,6.32437857,3180.8,3180.1,3.14446]
[1731783015391,3.18048857,3180.8,3180.1,0.06288397]
[1731783015697,3.14396,3180.7,3180.1,3.20736397]
[1731783015848,3.18048857,3180.8,3180.2,3.14438]
[1731783016189,3.18048857,3180.8,3180.3,3.14428]
[1731783017443,3.18048857,3180.8,3180.2,3.91076]
[1731783018190,3.18048857,3180.8,3180.3,3.14435]
[1731783021911,3.18048857,3180.8,3180.4,3.20711808]
[1731783022078,3.18048857,3180.8,3180.5,3.46485181]
[1731783022635,3.18048857,3180.8,3180.6,3.14403]
[1731783022937,3.18048857,3180.8,3180.5,0.32071181]
[1731783023691,3.18048857,3180.8,3180.2,0.7664]
[1731783023920,3.18048857,3180.8,3180.6,3.14397]
[1731783024415,3.18048857,3180.8,3180.7,3.14396]
[1731783024618,3.18048857,3180.8,3180.7,3.93206]
[1731783026204,3.18048857,3180.8,3180.7,0.7881]
[1731783026844,3.18048857,3180.8,3180.7,3.93206]